fUST/lending_fUST_20250125
["ID","MTS","AMOUNT","RATE_DAILY","PERIOD"]
[350280720,1737765044024,-179.393343,0.00019178,2]
[350280721,1737765044034,-179.393343,0.00019178,2]
[350280722,1737765044043,-179.393343,0.00019178,2]
[350280723,1737765044052,-179.393343,0.00019178,2]
[350280724,1737765044062,-500.0,0.00019178,2]
[350280725,1737765044071,-500.0,0.00019178,2]
[350280726,1737765044081,-179.393343,0.00019178,2]
[350280727,1737765044091,-179.393343,0.00019178,2]
[350280728,1737765044100,-179.393343,0.00019178,2]
[350280729,1737765044110,-179.393343,0.00019178,2]
[350280730,1737765044119,-179.393343,0.00019178,2]
[350280731,1737765044128,-179.393343,0.00019178,2]
[350280732,1737765044138,-179.393343,0.00019178,2]
[350280733,1737765044147,-1000.0,0.00019178,2]
[350280734,1737765044156,-179.393343,0.00019178,2]
[350280735,1737765044166,-500.0,0.00019178,2]
[350280736,1737765044175,-179.393343,0.00019178,2]
[350280737,1737765044247,-179.393343,0.00019178,2]
[350280738,1737765044257,-179.393343,0.00019178,2]
[350280739,1737765044267,-4546.25,0.00019178,2]
[350280740,1737765044276,-179.393337,0.00019178,2]
[350280741,1737765044286,-500.0,0.00019178,2]
[350280742,1737765044295,-1432.26,0.00019178,2]
[350280743,1737765044305,-1005.92,0.00019178,7]
[350280744,1737765044314,-500.0,0.00019178,2]
[350280745,1737765044326,-3253.8,0.00019178,2]
[350280746,1737765044336,-500.0,0.00019178,2]
[350280747,1737765044345,-1623.37,0.00019178,2]
[350280748,1737765044355,-500.0,0.00019178,2]
[350280749,1737765044365,-500.0,0.00019178,2]
[350280750,1737765044374,-2021.63,0.00019178,2]
[350280751,1737765044383,-500.0,0.00019178,2]
[350280752,1737765044393,-538.57810268,0.00019178,2]
[350280753,1737765044404,-500.0,0.00019178,2]
[350280755,1737765044414,-4558.43,0.00019178,2]
[350280756,1737765044423,-500.0,0.00019178,2]
[350280757,1737765044434,-500.0,0.00019178,2]
[350280758,1737765044443,-500.0,0.00019178,2]
[350280759,1737765044453,-500.0,0.00019178,2]
[350280760,1737765044463,-2643.8,0.00019178,2]
[350280761,1737765044473,-469.426075,0.00019178,2]
[350280762,1737765044484,-469.426075,0.00019178,2]
[350280763,1737765044494,-469.426075,0.00019178,2]
[350280764,1737765044504,-500.0,0.00019178,2]
[350280765,1737765044514,-469.426075,0.00019178,2]
[350280766,1737765044524,-500.0,0.00019178,2]
[350280767,1737765044534,-469.426075,0.00019178,2]
[350280768,1737765044543,-469.426075,0.00019178,2]
[350280769,1737765044552,-469.426075,0.00019178,2]
[350280770,1737765044561,-500.0,0.00019178,2]
[350280771,1737765044571,-469.426075,0.00019178,2]
[350280772,1737765044580,-469.426075,0.00019178,2]
[350280773,1737765044589,-469.426075,0.00019178,2]
[350280774,1737765044598,-469.426075,0.00019178,2]
[350280775,1737765044607,-500.0,0.00019178,2]
[350280776,1737765044618,-469.426075,0.00019178,2]
[350280777,1737765044627,-6415.38,0.00019178,2]
[350280778,1737765044636,-469.426075,0.00019178,2]
[350280779,1737765044645,-500.0,0.00019178,2]
[350280780,1737765044654,-469.426075,0.00019178,2]
[350280781,1737765044663,-469.426075,0.00019178,2]
[350280782,1737765044673,-500.0,0.00019178,2]
[350280783,1737765044683,-469.426075,0.00019178,2]
[350280784,1737765044692,-469.426075,0.00019178,2]
[350280785,1737765044703,-469.42608,0.00019178,2]
[350280786,1737765044712,-1180.52,0.00019178,2]
[350280787,1737765044722,-500.0,0.00019178,2]
[350280788,1737765044732,-500.0,0.00019178,2]
[350280789,1737765044741,-500.0,0.00019178,2]
[350280790,1737765044750,-500.0,0.00019178,2]
[350280791,1737765044759,-500.0,0.00019178,2]
[350280792,1737765044769,-500.0,0.00019178,2]
[350280793,1737765044778,-702.43,0.00019178,2]
[350280794,1737765044787,-500.0,0.00019178,2]
[350280795,1737765044796,-500.0,0.00019178,2]
[350280796,1737765044805,-500.0,0.00019178,2]
[350280797,1737765044815,-500.0,0.00019178,2]
[350280798,1737765044823,-467.94428311,0.00019178,2]
[350280799,1737765044833,-816.69,0.00019178,2]
[350280800,1737765044842,-500.0,0.00019178,2]
[350280801,1737765044851,-684.05,0.00019178,2]
[350280802,1737765044861,-500.0,0.00019178,2]
[350280803,1737765044870,-670.22,0.00019178,2]
[350280804,1737765044879,-500.0,0.00019178,2]
[350280805,1737765044888,-500.0,0.00019178,2]
[350280806,1737765044898,-500.0,0.00019178,2]
[350280807,1737765044908,-441.184206,0.00019178,2]
[350280808,1737765044917,-441.184206,0.00019178,2]
[350280809,1737765044926,-441.184206,0.00019178,2]
[350280810,1737765044935,-441.184206,0.00019178,2]
[350280811,1737765044945,-441.184206,0.00019178,2]
[350280812,1737765044955,-395.46069783,0.00019178,2]
[350280813,1737765045986,-623.19,0.00019176,2]
[350280814,1737765045996,-623.19,0.00019176,2]
[350280815,1737765046005,-418.48983028,0.00019176,2]
[350280816,1737765046019,-204.70016972,0.00019176,2]
[350280817,1737765046028,-623.19,0.00019176,2]
[350280818,1737765046037,-623.19,0.00019176,2]
[350280819,1737765046046,-623.19,0.00019176,2]
[350280820,1737765046056,-623.19,0.00019176,2]
[350280821,1737765046067,-623.19,0.00019176,2]
[350280822,1737765046077,-623.19,0.00019176,2]
[350280823,1737765046087,-623.38333792,0.00019176,2]
[350280824,1737765046096,-441.184206,0.00019177,2]
[350280825,1737765046106,-441.184206,0.00019177,2]
[350280826,1737765046115,-253.7240262,0.00019178,5]
[350280827,1737765046124,-44625.62,0.00019178,2]
[350280828,1737765046134,-441.184206,0.00019178,2]
[350280829,1737765046143,-500.0,0.00019178,2]
[350280830,1737765046153,-441.184206,0.00019178,2]
[350280831,1737765046163,-441.184206,0.00019178,2]
[350280832,1737765046175,-441.184206,0.00019178,2]
[350280833,1737765046184,-441.184206,0.00019178,2]
[350280835,1737765046194,-441.184206,0.00019178,2]
[350280836,1737765046203,-441.184206,0.00019178,2]
[350280837,1737765046212,-441.184206,0.00019178,2]
[350280838,1737765046222,-441.184206,0.00019178,2]
[350280839,1737765046231,-441.184206,0.00019178,2]
[350280840,1737765046241,-1104.53930217,0.00019178,2]
[350280841,1737765046250,-432.4466431,0.00019178,11]
[350280842,1737765046260,-160.317097,0.00019178,2]
[350280843,1737765046270,-1000.0,0.00019188,2]
[350280845,1737765046279,-641.3235992,0.000192,2]
[350280847,1737765046288,-1128.92,0.000192,2]
[350280849,1737765046297,-6726.76,0.000192,2]
[350280851,1737765046307,-7665.68,0.000192,2]
[350280852,1737765046317,-151.0,0.000192,2]
[350280853,1737765046327,-151.0,0.000192,2]
[350280854,1737765046337,-151.0,0.000192,2]
[350280855,1737765046346,-151.0,0.000192,2]
[350280856,1737765046355,-151.0,0.000192,2]
[350280857,1737765046364,-151.0,0.000192,2]
[350280858,1737765046374,-153.0,0.000192,2]
[350280860,1737765046384,-153.0,0.000192,2]
[350280861,1737765046393,-153.0,0.000192,2]
[350280862,1737765046404,-247.80377858,0.0001928,2]
[350280863,1737765046415,-159.0,0.00019285,2]
[350280864,1737765046424,-159.0,0.00019285,2]
[350280865,1737765046434,-159.0,0.00019285,2]
[350280866,1737765046446,-159.0,0.00019285,2]
[350280867,1737765046456,-159.0,0.00019285,2]
[350280868,1737765046465,-159.0,0.00019285,2]
[350280869,1737765046474,-164.27,0.00019285,2]
[350280870,1737765046485,-151.0,0.00019285,2]
[350280871,1737765046495,-151.0,0.00019285,2]
[350280872,1737765046505,-151.01,0.00019285,2]
[350280873,1737765046516,-151.0,0.000193,2]
[350280874,1737765046527,-151.0,0.000193,2]
[350280875,1737765046537,-151.0,0.000193,2]
[350280876,1737765046546,-151.0,0.000193,2]
[350280877,1737765046556,-151.0,0.000193,2]
[350280878,1737765046566,-151.0,0.000193,2]
[350280880,1737765046575,-151.0,0.000193,2]
[350280882,1737765046584,-151.0,0.000193,2]
[350280883,1737765046593,-500.0,0.00019315,3]
[350280884,1737765046603,-431.3297498,0.00019315,3]
[350280886,1737765046613,-242.86977413,0.00019315,3]
[350280888,1737765046622,-500.0,0.00019315,3]
[350280890,1737765046631,-504.29222781,0.00019315,3]
[350280892,1737765046641,-500.0,0.00019315,3]
[350280893,1737765046650,-500.0,0.00019315,3]
[350280894,1737765046660,-500.0,0.00019315,3]
[350280896,1737765046668,-500.0,0.00019315,3]
[350280898,1737765046677,-740.75,0.00019315,3]
[350280900,1737765046686,-500.0,0.00019315,3]
[350280902,1737765046695,-494.7571562,0.00019315,3]
[350280903,1737765046705,-500.0,0.00019315,3]
[350280904,1737765046713,-500.0,0.00019315,3]
[350280905,1737765046723,-500.0,0.00019315,3]
[350280906,1737765046733,-500.0,0.00019315,3]
[350280907,1737765046742,-500.0,0.00019315,3]
[350280908,1737765046751,-500.0,0.00019315,3]
[350280909,1737765046760,-500.0,0.00019315,3]
[350280910,1737765046770,-500.0,0.00019315,3]
[350280911,1737765046779,-511.06818807,0.00019315,3]
[350280912,1737765046788,-500.0,0.00019315,3]
[350280913,1737765046798,-500.0,0.00019315,3]
[350280914,1737765046807,-518.179845,0.00019315,3]
[350280915,1737765046816,-500.0,0.00019315,3]
[350280916,1737765046826,-514.82600701,0.00019315,3]
[350280917,1737765046835,-200.0,0.00019315,3]
[350280918,1737765046845,-500.0,0.00019315,3]
[350280919,1737765046854,-500.0,0.00019315,3]
[350280920,1737765046864,-500.0,0.00019315,3]
[350280921,1737765046873,-1067.27,0.00019315,3]
[350280922,1737765046882,-500.0,0.00019315,3]
[350280923,1737765046891,-508.89564007,0.00019315,3]
[350280924,1737765046901,-500.0,0.00019315,3]
[350280925,1737765046910,-501.18074855,0.00019315,3]
[350280926,1737765046920,-500.0,0.00019315,3]
[350280927,1737765046930,-500.0,0.00019315,3]
[350280928,1737765046939,-500.0,0.00019315,3]
[350280929,1737765046949,-500.0,0.00019315,3]
[350280930,1737765046961,-500.0,0.00019315,3]
[350280931,1737765046971,-500.0,0.00019315,3]
[350280932,1737765046980,-500.0,0.00019315,3]
[350280933,1737765046992,-500.0,0.00019315,3]
[350280934,1737765047001,-500.0,0.00019315,3]
[350280935,1737765047010,-500.0,0.00019315,2]
[350280936,1737765047020,-500.0,0.00019315,3]
[350280937,1737765047029,-500.0,0.00019315,3]
[350280938,1737765047039,-500.0,0.00019315,3]
[350280939,1737765047049,-513.82941174,0.00019315,3]
[350280940,1737765047058,-500.0,0.00019315,3]
[350280941,1737765047068,-500.0,0.00019315,3]
[350280942,1737765047078,-500.0,0.00019315,3]
[350280943,1737765047087,-500.0,0.00019315,3]
[350280944,1737765047097,-500.0,0.00019315,3]
[350280945,1737765047106,-503.08907522,0.00019315,3]
[350280946,1737765047116,-15.80892011,0.00019315,3]
[350280947,1737765047263,-441.184201,0.00019178,2]
[350280948,1737765047273,-484.19107989,0.00019315,3]
[350280949,1737765047283,-500.0,0.00019315,3]
[350280950,1737765047293,-500.0,0.00019315,3]
[350280951,1737765047303,-500.0,0.00019315,3]
[350280952,1737765047312,-508.26626663,0.00019315,3]
[350280953,1737765047323,-502.10760146,0.00019315,3]
[350280954,1737765047334,-501.15369685,0.00019315,3]
[350280955,1737765047343,-500.0,0.00019315,3]
[350280956,1737765047352,-824.34,0.00019315,3]
[350280957,1737765047362,-500.0,0.00019315,3]
[350280958,1737765047371,-500.0,0.00019315,3]
[350280959,1737765047380,-500.0,0.00019315,3]
[350280960,1737765047390,-500.0,0.00019315,3]
[350280961,1737765047404,-500.0,0.00019315,3]
[350280962,1737765047413,-500.0,0.00019315,3]
[350280963,1737765047423,-362.4196949,0.00019315,3]
[350280964,1737765047432,-500.0,0.00019315,3]
[350280965,1737765047442,-500.0,0.00019315,3]
[350280966,1737765047451,-500.0,0.00019315,3]
[350280967,1737765047460,-500.0,0.00019315,3]
[350280968,1737765047470,-173.33817922,0.00019315,3]
[350280969,1737765047479,-500.0,0.00019315,3]
[350280970,1737765047490,-500.0,0.00019315,3]
[350280971,1737765047499,-500.0,0.00019315,3]
[350280972,1737765047509,-500.0,0.00019315,3]
[350280973,1737765047518,-500.0,0.00019315,3]
[350280974,1737765047527,-500.0,0.00019315,3]
[350280975,1737765047536,-500.0,0.00019315,3]
[350280976,1737765047546,-500.0,0.00019315,3]
[350280977,1737765047555,-500.0,0.00019315,3]
[350280978,1737765047564,-500.0,0.00019315,3]
[350280979,1737765047574,-500.0,0.00019315,3]
[350280980,1737765047583,-500.0,0.00019315,3]
[350280981,1737765047593,-500.0,0.00019315,3]
[350280982,1737765047602,-500.0,0.00019315,3]
[350280983,1737765047612,-500.0,0.00019315,2]
[350280984,1737765047621,-500.0,0.00019315,3]
[350280985,1737765047631,-500.0,0.00019315,3]
[350280986,1737765047640,-500.15847683,0.00019315,3]
[350280987,1737765047650,-509.5504308,0.00019315,3]
[350280988,1737765047660,-502.85960385,0.00019315,3]
[350280989,1737765047669,-500.0,0.00019315,3]
[350280990,1737765047679,-586.79627726,0.00019315,3]
[350280991,1737765047688,-515.25,0.00019315,3]
[350280992,1737765047698,-500.0,0.00019315,3]
[350280993,1737765047707,-501.07946339,0.00019315,3]
[350280994,1737765047717,-500.0,0.00019315,3]
[350280995,1737765047727,-500.0,0.00019315,3]
[350280996,1737765047737,-500.81278663,0.00019315,3]
[350280997,1737765047747,-508.83575165,0.00019315,3]
[350280998,1737765047757,-500.0,0.00019315,3]
[350280999,1737765047767,-500.0,0.00019315,3]
[350281000,1737765047776,-500.0,0.00019315,3]
[350281001,1737765047786,-500.0,0.00019315,3]
[350281002,1737765047795,-515.22010929,0.00019315,3]
[350281003,1737765047805,-740.4,0.00019315,3]
[350281004,1737765047814,-500.0,0.00019315,3]
[350281005,1737765047824,-848.4,0.00019315,3]
[350281006,1737765047834,-500.0,0.00019315,3]
[350281007,1737765047843,-500.0,0.00019315,3]
[350281008,1737765047854,-500.0,0.00019315,3]
[350281009,1737765047864,-500.0,0.00019315,3]
[350281010,1737765047874,-500.0,0.00019315,3]
[350281011,1737765047885,-500.0,0.00019315,3]
[350281012,1737765047895,-500.0,0.00019315,3]
[350281013,1737765047904,-554.19,0.00019315,3]
[350281014,1737765047914,-500.0,0.00019315,3]
[350281015,1737765047923,-500.0,0.00019315,3]
[350281016,1737765047934,-500.0,0.00019315,3]
[350281017,1737765047943,-500.0,0.00019315,3]
[350281018,1737765047953,-500.0,0.00019315,3]
[350281019,1737765047962,-500.0,0.00019315,3]
[350281020,1737765047972,-826.64,0.00019315,3]
[350281021,1737765047984,-500.0,0.00019315,3]
[350281022,1737765047994,-500.0,0.00019315,3]
[350281023,1737765048004,-500.0,0.00019315,3]
[350281024,1737765048015,-500.0,0.00019315,3]
[350281025,1737765048026,-500.0,0.00019315,3]
[350281026,1737765048036,-500.0,0.00019315,3]
[350281027,1737765048046,-500.0,0.00019315,3]
[350281028,1737765048057,-500.0,0.00019315,3]
[350281029,1737765048069,-540.93,0.00019315,3]
[350281030,1737765048079,-500.0,0.00019315,3]
[350281031,1737765048090,-515.33,0.00019315,3]
[350281032,1737765048101,-1608.18,0.00019315,3]
[350281033,1737765048111,-506.68029786,0.00019315,3]
[350281034,1737765048122,-500.0,0.00019315,3]
[350281035,1737765048132,-756.14,0.00019315,3]
[350281036,1737765048142,-500.0,0.00019315,3]
[350281037,1737765048152,-501.39104682,0.00019315,3]
[350281038,1737765048162,-500.0,0.00019315,3]
[350281039,1737765048172,-500.0,0.00019315,3]
[350281040,1737765048182,-500.0,0.00019315,3]
[350281041,1737765048192,-500.0,0.00019315,3]
[350281042,1737765048202,-500.0,0.00019315,3]
[350281043,1737765048212,-500.0,0.00019315,3]
[350281044,1737765048222,-500.0,0.00019315,3]
[350281045,1737765048233,-507.42,0.00019315,3]
[350281046,1737765048244,-1538.93,0.00019315,3]
[350281047,1737765048254,-500.0,0.00019315,3]
[350281048,1737765048264,-1016.05,0.00019315,3]
[350281049,1737765048274,-500.0,0.00019315,3]
[350281050,1737765048285,-500.0,0.00019315,3]
[350281051,1737765048396,-500.0,0.00019315,3]
[350281052,1737765048408,-706.26,0.00019315,3]
[350281053,1737765048418,-734.84,0.00019315,3]
[350281054,1737765048428,-500.0,0.00019315,3]
[350281055,1737765048438,-500.0,0.00019315,3]
[350281056,1737765048448,-500.0,0.00019315,3]
[350281057,1737765048457,-500.0,0.00019315,3]
[350281058,1737765048467,-492.44579183,0.00019315,3]
[350281059,1737765048477,-500.0,0.00019315,3]
[350281060,1737765048488,-500.0,0.00019315,3]
[350281061,1737765048498,-501.09982786,0.00019315,3]
[350281062,1737765048508,-646.75,0.00019315,3]
[350281063,1737765048518,-500.0,0.00019315,3]
[350281064,1737765048528,-561.49,0.00019315,3]
[350281065,1737765048537,-500.0,0.00019315,3]
[350281066,1737765048547,-771.51,0.00019315,3]
[350281067,1737765048557,-500.0,0.00019315,3]
[350281068,1737765048566,-500.0,0.00019315,3]
[350281069,1737765048576,-382.41071566,0.00019315,3]
[350281070,1737765048585,-500.0,0.00019315,3]
[350281071,1737765048596,-500.0,0.00019315,3]
[350281072,1737765048606,-500.0,0.00019315,3]
[350281073,1737765048616,-509.66789784,0.00019315,3]
[350281074,1737765048625,-500.0,0.00019315,3]
[350281075,1737765048635,-500.0,0.00019315,3]
[350281076,1737765048645,-500.0,0.00019315,3]
[350281077,1737765048654,-500.0,0.00019315,3]
[350281078,1737765048664,-500.0,0.00019315,3]
[350281079,1737765048674,-500.0,0.00019315,3]
[350281080,1737765048683,-740.81,0.00019315,3]
[350281081,1737765048693,-634.02,0.00019315,3]
[350281082,1737765048702,-719.88,0.00019315,3]
[350281083,1737765048712,-178.20367619,0.00019315,3]
[350281084,1737765048722,-500.0,0.00019315,3]
[350281085,1737765048733,-500.0,0.00019315,3]
[350281086,1737765048743,-500.0,0.00019315,3]
[350281087,1737765048752,-875.84,0.00019315,3]
[350281088,1737765048762,-500.0,0.00019315,3]
[350281089,1737765048772,-398.53818382,0.00019315,3]
[350281090,1737765048782,-197.14672895,0.00019315,3]
[350281091,1737765048791,-500.0,0.00019315,3]
[350281092,1737765048801,-500.0,0.00019315,3]
[350281093,1737765048810,-545.37,0.00019315,3]
[350281094,1737765048819,-503.60025207,0.00019315,3]
[350281095,1737765048829,-500.0,0.00019315,3]
[350281096,1737765048839,-500.0,0.00019315,3]
[350281097,1737765048849,-500.0,0.00019315,3]
[350281098,1737765048858,-500.0,0.00019315,3]
[350281099,1737765048868,-500.0,0.00019315,3]
[350281100,1737765048878,-500.0,0.00019315,3]
[350281101,1737765048887,-828.35,0.00019315,3]
[350281102,1737765048897,-500.0,0.00019315,3]
[350281103,1737765048906,-500.0,0.00019315,3]
[350281104,1737765048916,-1461.0,0.00019315,3]
[350281105,1737765048925,-500.0,0.00019315,3]
[350281106,1737765048935,-500.0,0.00019315,3]
[350281107,1737765048945,-515.3202225,0.00019315,3]
[350281108,1737765048955,-500.0,0.00019315,3]
[350281109,1737765048964,-500.0,0.00019315,3]
[350281110,1737765048974,-505.1489807,0.00019315,3]
[350281111,1737765048984,-510.48,0.00019315,3]
[350281112,1737765048994,-500.0,0.00019315,3]
[350281113,1737765049004,-500.0,0.00019315,3]
[350281114,1737765049014,-680.4,0.00019315,3]
[350281115,1737765049024,-500.0,0.00019315,3]
[350281116,1737765049033,-500.0,0.00019315,3]
[350281117,1737765049043,-500.0,0.00019315,3]
[350281118,1737765049052,-500.0,0.00019315,3]
[350281119,1737765049062,-969.92,0.00019315,3]
[350281120,1737765049073,-500.0,0.00019315,3]
[350281121,1737765049083,-500.0,0.00019315,3]
[350281122,1737765049093,-500.0,0.00019315,3]
[350281123,1737765049103,-522.31,0.00019315,3]
[350281124,1737765049113,-500.0,0.00019315,2]
[350281125,1737765049123,-500.0,0.00019315,3]
[350281126,1737765049133,-501.82583475,0.00019315,3]
[350281127,1737765049143,-500.0,0.00019315,3]
[350281128,1737765049153,-500.0,0.00019315,3]
[350281129,1737765049163,-500.0,0.00019315,3]
[350281130,1737765049174,-500.0,0.00019315,3]
[350281131,1737765049184,-500.0,0.00019315,3]
[350281132,1737765049194,-500.0,0.00019315,3]
[350281133,1737765049204,-505.56567915,0.00019315,3]
[350281134,1737765049214,-500.0,0.00019315,3]
[350281135,1737765049224,-500.0,0.00019315,3]
[350281136,1737765049234,-836.29,0.00019315,3]
[350281137,1737765049244,-500.95617647,0.00019315,3]
[350281138,1737765049255,-500.0,0.00019315,3]
[350281139,1737765049265,-500.0,0.00019315,3]
[350281140,1737765049276,-487.14287021,0.00019315,3]
[350281141,1737765049287,-500.0,0.00019315,3]
[350281142,1737765049298,-500.0,0.00019315,3]
[350281143,1737765049308,-500.0,0.00019315,3]
[350281144,1737765049318,-503.33403478,0.00019315,3]
[350281145,1737765049332,-500.0,0.00019315,3]
[350281146,1737765049342,-536.34,0.00019315,3]
[350281147,1737765049352,-281.64063764,0.00019315,3]
[350281148,1737765049362,-500.0,0.00019315,3]
[350281149,1737765049374,-500.0,0.00019315,3]
[350281150,1737765049384,-500.0,0.00019315,3]
[350281151,1737765049394,-500.0,0.00019315,3]
[350281152,1737765049406,-568.19609609,0.00019315,3]
[350281153,1737765049416,-500.0,0.00019315,3]
[350281154,1737765049425,-508.08534299,0.00019315,3]
[350281155,1737765049436,-343.18082961,0.00019315,3]
[350281156,1737765049445,-501.36751427,0.00019315,3]
[350281157,1737765049455,-500.0,0.00019315,3]
[350281158,1737765049465,-500.0,0.00019315,3]
[350281159,1737765049475,-2802.49,0.00019315,3]
[350281160,1737765049484,-500.0,0.00019315,3]
[350281161,1737765049494,-500.0,0.00019315,3]
[350281162,1737765049503,-626.57,0.00019315,3]
[350281163,1737765049514,-500.0,0.00019315,3]
[350281164,1737765049523,-500.0,0.00019315,3]
[350281165,1737765049533,-500.0,0.00019315,3]
[350281166,1737765049546,-500.0,0.00019315,3]
[350281167,1737765049556,-500.0,0.00019315,3]
[350281168,1737765049566,-500.0,0.00019315,3]
[350281169,1737765049576,-500.0,0.00019315,3]
[350281170,1737765049585,-500.0,0.00019315,3]
[350281171,1737765049595,-500.0,0.00019315,3]
[350281172,1737765049605,-500.0,0.00019315,3]
[350281173,1737765049614,-500.0,0.00019315,3]
[350281174,1737765049624,-500.0,0.00019315,3]
[350281175,1737765049634,-500.0,0.00019315,3]
[350281176,1737765049644,-512.08064928,0.00019315,3]
[350281177,1737765049653,-500.0,0.00019315,3]
[350281178,1737765049663,-500.0,0.00019315,3]
[350281179,1737765049672,-500.0,0.00019315,3]
[350281180,1737765049682,-500.0,0.00019315,3]
[350281181,1737765049694,-500.0,0.00019315,3]
[350281182,1737765049703,-501.03747084,0.00019315,3]
[350281183,1737765049713,-500.0,0.00019315,3]
[350281184,1737765049725,-500.0,0.00019315,3]
[350281185,1737765049735,-502.92755861,0.00019315,3]
[350281186,1737765049745,-2181.48,0.00019315,2]
[350281187,1737765049755,-505.14909796,0.00019315,3]
[350281188,1737765049764,-118.34833811,0.00019315,3]
[350281189,1737765049834,-400.81132579,0.00018984,2]
[350281190,1737765049846,-59.17867421,0.00019178,2]
[350281191,1737765049860,-1140.82132579,0.00019178,2]
[350281192,1737765049870,-500.0,0.00019178,2]
[350281193,1737765049880,-381.65166189,0.00019315,3]
[350281194,1737765049890,-500.0,0.00019315,3]
[350281195,1737765049900,-500.0,0.00019315,3]
[350281196,1737765049910,-509.63647502,0.00019315,3]
[350281197,1737765049919,-4572.82,0.00019315,3]
[350281198,1737765049928,-500.0,0.00019315,3]
[350281199,1737765049938,-500.0,0.00019315,3]
[350281200,1737765049947,-500.0,0.00019315,3]
[350281201,1737765049956,-500.0,0.00019315,3]
[350281202,1737765049966,-500.0,0.00019315,3]
[350281203,1737765049976,-530.85196742,0.00019315,3]
[350281204,1737765049986,-876.66122085,0.00019315,3]
[350281205,1737765050239,-500.9027951,0.00019315,3]
[350281206,1737765050249,-500.0,0.00019315,3]
[350281207,1737765050260,-613.73743065,0.00019315,3]
[350281208,1737765050270,-500.0,0.00019315,3]
[350281209,1737765050280,-2829.17,0.00019315,3]
[350281210,1737765050289,-500.0,0.00019315,3]
[350281211,1737765050299,-500.0,0.00019315,3]
[350281212,1737765050309,-500.0,0.00019315,3]
[350281213,1737765050318,-500.0,0.00019315,3]
[350281214,1737765050331,-500.0,0.00019315,3]
[350281215,1737765050341,-500.0,0.00019315,3]
[350281216,1737765050350,-1216.9,0.00019315,3]
[350281217,1737765050360,-2139.41,0.00019315,3]
[350281218,1737765050370,-500.0,0.00019315,3]
[350281219,1737765050379,-500.0,0.00019315,3]
[350281220,1737765050389,-500.0,0.00019315,3]
[350281221,1737765050400,-500.0,0.00019315,3]
[350281222,1737765050409,-500.0,0.00019315,3]
[350281223,1737765050419,-500.0,0.00019315,3]
[350281224,1737765050428,-500.0,0.00019315,3]
[350281225,1737765050438,-500.0,0.00019315,3]
[350281226,1737765050447,-500.0,0.00019315,3]
[350281227,1737765050456,-671.16918943,0.00019315,3]
[350281228,1737765050470,-3612.69081057,0.00019315,3]
[350281229,1737765050480,-500.0,0.00019315,3]
[350281230,1737765050492,-500.0,0.00019315,3]
[350281231,1737765050502,-500.0,0.00019315,3]
[350281232,1737765050511,-254.61073593,0.00019315,3]
[350281234,1737765168934,13868.47600323,0.00024,120]
[350281235,1737765210767,160.0,0.00023748,120]
[350281237,1737765270776,160.0,0.00023961,120]
[350281238,1737765331318,160.0,0.00023437,120]